{"text_format":"3","workbook":"xlsx","n_sheets":2,"sheets":["donnees","Matrice des frequences"],"not_rendered":{"macros":1,"defined_names":2},"read":"whole","date_system":"1900"}

{"sheet":"donnees","index":0,"n_rows":602,"n_cols":4,"rows_kept":602}
[null,"Age","Garçon ou Fille","Possede ou pas"]
["Code","q1_a","q1_b","q2"]
[1,"18","Garçon","Possède son propre téléphone"]
[2,"18","Garçon","Possède son propre téléphone"]
[3,"14","Garçon","Possède son propre téléphone"]
[4,"16","Garçon","Possède son propre téléphone"]
[5,"13","Garçon","Partage un téléphone avec d'autres membres de la famille"]
[6,"14","Garçon","Possède son propre téléphone"]
[7,"15","Garçon","Possède son propre téléphone"]
[8,"11","Garçon","Possède son propre téléphone"]
[9,"17","Fille","Possède son propre téléphone"]
[10,"18","Garçon","Possède son propre téléphone"]
[11,"16","Garçon","Possède son propre téléphone"]
[12,"14","Garçon","Possède son propre téléphone"]
[13,"11","Fille","Ne possède pas de téléphone et ne semble pas en vouloir un"]
[14,"16","Garçon","Possède son propre téléphone"]
[15,"9","Garçon","Possède son propre téléphone"]
[16,"15","Fille","Possède son propre téléphone"]
[17,"17","Fille","Possède son propre téléphone"]
[18,"16","Garçon","Possède son propre téléphone"]
[19,"13","Fille","Possède son propre téléphone"]
[20,"8","Fille","Possède son propre téléphone"]
[21,"15","Fille","Possède son propre téléphone"]
[22,"10","Garçon","Ne possède pas de téléphone, mais semble en vouloir un"]
[23,"10","Fille","Possède son propre téléphone"]
[24,"10","Garçon","Possède son propre téléphone"]
[25,"18","Fille","Possède son propre téléphone"]
[26,"18","Fille","Possède son propre téléphone"]
[27,"13","Garçon","Possède son propre téléphone"]
[28,"8","Fille","Ne possède pas de téléphone et ne semble pas en vouloir un"]
[29,"16","Garçon","Possède son propre téléphone"]
[30,"14","Garçon","Possède son propre téléphone"]
[31,"17","Garçon","Possède son propre téléphone"]
[32,"15","Fille","Possède son propre téléphone"]
[33,"15","Fille","Possède son propre téléphone"]
[34,"17","Garçon","Possède son propre téléphone"]
[35,"16","Garçon","Possède son propre téléphone"]
[36,"18","Garçon","Possède son propre téléphone"]
[37,"15","Fille","Possède son propre téléphone"]
[38,"11","Garçon","Possède son propre téléphone"]
[39,"9","Garçon","Ne possède pas de téléphone, mais semble en vouloir un"]
[40,"8","Fille","Ne possède pas de téléphone, mais semble en vouloir un"]
[41,"10","Garçon","Possède son propre téléphone"]
[42,"16","Garçon","Possède son propre téléphone"]
[43,"17","Fille","Possède son propre téléphone"]
[44,"16","Garçon","Possède son propre téléphone"]
[45,"17","Fille","Possède son propre téléphone"]
[46,"18","Garçon","Possède son propre téléphone"]
[47,"14","Fille","Ne possède pas de téléphone et ne semble pas en vouloir un"]
[48,"14","Fille","Possède son propre téléphone"]
[49,"12","Fille","Possède son propre téléphone"]
[50,"17","Fille","Ne possède pas de téléphone et ne semble pas en vouloir un"]
[51,"13","Fille","Possède son propre téléphone"]
[52,"16","Garçon","Possède son propre téléphone"]
[53,"14","Garçon","Possède son propre téléphone"]
[54,"13","Fille","Possède son propre téléphone"]
[55,"12","Garçon","Possède son propre téléphone"]
[56,"16","Fille","Possède son propre téléphone"]
[57,"12","Fille","Possède son propre téléphone"]
[58,"12","Garçon","Possède son propre téléphone"]
[59,"10","Fille","Possède son propre téléphone"]
[60,"16","Garçon","Possède son propre téléphone"]
[61,"18","Fille","Possède son propre téléphone"]
[62,"13","Garçon","Possède son propre téléphone"]
[63,"17","Garçon","Possède son propre téléphone"]
[64,"14","Fille","Possède son propre téléphone"]
[65,"18","Garçon","Possède son propre téléphone"]
[66,"18","Fille","Possède son propre téléphone"]
[67,"16","Fille","Possède son propre téléphone"]
[68,"13","Fille","Possède son propre téléphone"]
[69,"15","Fille","Possède son propre téléphone"]
[70,"15","Fille","Possède son propre téléphone"]
[71,"16","Fille","Possède son propre téléphone"]
[72,"14","Garçon","Possède son propre téléphone"]
[73,"18","Garçon","Possède son propre téléphone"]
[74,"16","Garçon","Possède son propre téléphone"]
[75,"9","Fille","Possède son propre téléphone"]
[76,"15","Fille","Possède son propre téléphone"]
[77,"12","Garçon","Possède son propre téléphone"]
[78,"16","Fille","Possède son propre téléphone"]
[79,"18","Garçon","Ne possède pas de téléphone et ne semble pas en vouloir un"]
[80,"16","Garçon","Possède son propre téléphone"]
[81,"12","Fille","Possède son propre téléphone"]
[82,"13","Fille","Possède son propre téléphone"]
[83,"15","Fille","Possède son propre téléphone"]
[84,"13","Garçon","Possède son propre téléphone"]
[85,"14","Fille","Possède son propre téléphone"]
[86,"15","Garçon","Possède son propre téléphone"]
[87,"14","Fille","Possède son propre téléphone"]
[88,"18","Garçon","Possède son propre téléphone"]
[89,"18","Fille","Possède son propre téléphone"]
[90,"8","Garçon","Possède son propre téléphone"]
[91,"8","Garçon","Possède son propre téléphone"]
[92,"16","Fille","Possède son propre téléphone"]
[93,"18","Fille","Possède son propre téléphone"]
[94,"16","Fille","Partage un téléphone avec d'autres membres de la famille"]
[95,"17","Garçon","Possède son propre téléphone"]
[96,"16","Garçon","Partage un téléphone avec d'autres membres de la famille"]
[97,"11","Garçon","Partage un téléphone avec d'autres membres de la famille"]
[98,"18","Garçon","Possède son propre téléphone"]
[99,"17","Fille","Possède son propre téléphone"]
[100,"16","Fille","Possède son propre téléphone"]
[101,"17","Garçon","Possède son propre téléphone"]
[102,"16","Garçon","Possède son propre téléphone"]
[103,"8","Fille",0]
[104,"10","Fille","Partage un téléphone avec d'autres membres de la famille"]
[105,"16","Garçon","Possède son propre téléphone"]
[106,"18","Garçon","Possède son propre téléphone"]
[107,"15","Garçon","Possède son propre téléphone"]
[108,"14","Fille","Possède son propre téléphone"]
[109,"15","Garçon","Possède son propre téléphone"]
[110,"17","Fille","Possède son propre téléphone"]
[111,"15","Garçon","Possède son propre téléphone"]
[112,"16","Fille","Possède son propre téléphone"]
[113,"10","Fille","Possède son propre téléphone"]
[114,"9","Fille","Partage un téléphone avec d'autres membres de la famille"]
[115,"10","Fille","Possède son propre téléphone"]
[116,"18","Fille","Possède son propre téléphone"]
[117,"17","Garçon","Possède son propre téléphone"]
[118,"18","Garçon","Possède son propre téléphone"]
[119,"18","Garçon","Possède son propre téléphone"]
[120,"11","Fille","Ne possède pas de téléphone et ne semble pas en vouloir un"]
[121,"15","Garçon","Possède son propre téléphone"]
[122,"16","Fille","Possède son propre téléphone"]
[123,"16","Fille","Possède son propre téléphone"]
[124,"14","Garçon","Ne possède pas de téléphone, mais semble en vouloir un"]
[125,"12","Fille","Ne possède pas de téléphone et ne semble pas en vouloir un"]
[126,"18","Garçon","Possède son propre téléphone"]
[127,"13","Garçon","Possède son propre téléphone"]
[128,"13","Garçon","Possède son propre téléphone"]
[129,"14","Fille","Partage un téléphone avec d'autres membres de la famille"]
[130,"17","Fille","Ne possède pas de téléphone et ne semble pas en vouloir un"]
[131,"10","Fille","Ne possède pas de téléphone, mais semble en vouloir un"]
[132,"12","Fille","Ne possède pas de téléphone et ne semble pas en vouloir un"]
[133,"14","Garçon","Ne possède pas de téléphone, mais semble en vouloir un"]
[134,"17","Fille","Possède son propre téléphone"]
[135,"18","Garçon","Possède son propre téléphone"]
[136,"18","Garçon","Possède son propre téléphone"]
[137,"16","Garçon","Possède son propre téléphone"]
[138,"16","Garçon","Possède son propre téléphone"]
[139,"18","Fille","Possède son propre téléphone"]
[140,"18","Garçon","Possède son propre téléphone"]
[141,"18","Garçon","Possède son propre téléphone"]
[142,"14","Fille","Possède son propre téléphone"]
[143,"17","Garçon","Possède son propre téléphone"]
[144,"13","Fille","Ne possède pas de téléphone et ne semble pas en vouloir un"]
[145,"18","Garçon","Possède son propre téléphone"]
[146,"15","Garçon","Ne possède pas de téléphone, mais semble en vouloir un"]
[147,"16","Fille","Partage un téléphone avec d'autres membres de la famille"]
[148,"14","Garçon","Possède son propre téléphone"]
[149,"10","Garçon","Ne possède pas de téléphone, mais semble en vouloir un"]
[150,"17","Fille","Possède son propre téléphone"]
[151,"14","Fille","Possède son propre téléphone"]
[152,"16","Fille","Possède son propre téléphone"]
[153,"11","Fille","Possède son propre téléphone"]
[154,"13","Garçon","Possède son propre téléphone"]
[155,"18","Garçon","Possède son propre téléphone"]
[156,"12","Fille","Possède son propre téléphone"]
[157,"17","Garçon","Partage un téléphone avec d'autres membres de la famille"]
[158,"13","Fille","Possède son propre téléphone"]
[159,"16","Garçon","Possède son propre téléphone"]
[160,"11","Fille","Ne possède pas de téléphone et ne semble pas en vouloir un"]
[161,"18","Garçon","Possède son propre téléphone"]
[162,"16","Fille","Ne possède pas de téléphone, mais semble en vouloir un"]
[163,"11","Fille","Partage un téléphone avec d'autres membres de la famille"]
[164,"8","Garçon","Possède son propre téléphone"]
[165,"13","Fille","Possède son propre téléphone"]
[166,"16","Fille","Possède son propre téléphone"]
[167,"17","Garçon","Possède son propre téléphone"]
[168,"18","Garçon","Possède son propre téléphone"]
[169,"17","Fille","Possède son propre téléphone"]
[170,"16",0,"Possède son propre téléphone"]
[171,"14","Fille","Possède son propre téléphone"]
[172,"18","Fille","Possède son propre téléphone"]
[173,"15",0,"Possède son propre téléphone"]
[174,"18","Fille","Possède son propre téléphone"]
[175,"13","Fille","Partage un téléphone avec d'autres membres de la famille"]
[176,"8","Garçon","Possède son propre téléphone"]
[177,"8","Garçon","Possède son propre téléphone"]
[178,"9","Garçon","Possède son propre téléphone"]
[179,"10","Garçon","Possède son propre téléphone"]
[180,"14","Fille","Partage un téléphone avec d'autres membres de la famille"]
[181,"8","Garçon","Possède son propre téléphone"]
[182,"13","Garçon","Possède son propre téléphone"]
[183,"18","Garçon","Possède son propre téléphone"]
[184,"16","Fille","Possède son propre téléphone"]
[185,"15","Garçon","Possède son propre téléphone"]
[186,"17","Garçon","Possède son propre téléphone"]
[187,"8","Garçon","Possède son propre téléphone"]
[188,"10","Garçon","Possède son propre téléphone"]
[189,"14","Fille","Possède son propre téléphone"]
[190,"18","Fille","Possède son propre téléphone"]
[191,"12","Fille","Ne possède pas de téléphone, mais semble en vouloir un"]
[192,"18","Fille","Possède son propre téléphone"]
[193,"14","Garçon","Possède son propre téléphone"]
[194,"9","Fille","Possède son propre téléphone"]
[195,"13","Fille","Partage un téléphone avec d'autres membres de la famille"]
[196,"12","Fille","Possède son propre téléphone"]
[197,"18","Fille","Possède son propre téléphone"]
[198,"9","Garçon","Ne possède pas de téléphone et ne semble pas en vouloir un"]
[199,"8","Fille","Ne possède pas de téléphone, mais semble en vouloir un"]
[200,"11","Fille","Partage un téléphone avec d'autres membres de la famille"]
[201,"18","Fille","Possède son propre téléphone"]
[202,"11","Fille","Partage un téléphone avec d'autres membres de la famille"]
[203,"17","Fille","Possède son propre téléphone"]
[204,"15","Fille","Possède son propre téléphone"]
[205,"17","Garçon","Ne possède pas de téléphone, mais semble en vouloir un"]
[206,"17","Fille","Possède son propre téléphone"]
[207,"14","Garçon","Ne possède pas de téléphone, mais semble en vouloir un"]
[208,"18","Fille","Partage un téléphone avec d'autres membres de la famille"]
[209,"15","Garçon","Possède son propre téléphone"]
[210,"16","Garçon","Possède son propre téléphone"]
[211,"16","Garçon","Possède son propre téléphone"]
[212,"17","Garçon","Possède son propre téléphone"]
[213,"14","Fille",0]
[214,"10","Garçon","Ne possède pas de téléphone et ne semble pas en vouloir un"]
[215,"16","Fille","Possède son propre téléphone"]
[216,"18","Garçon","Possède son propre téléphone"]
[217,"18","Fille","Partage un téléphone avec d'autres membres de la famille"]
[218,"18","Fille","Possède son propre téléphone"]
[219,"17","Garçon","Possède son propre téléphone"]
[220,"12","Garçon","Possède son propre téléphone"]
[221,"18","Fille","Possède son propre téléphone"]
[222,"16","Garçon","Possède son propre téléphone"]
[223,"18","Garçon","Possède son propre téléphone"]
[224,"15","Fille","Partage un téléphone avec d'autres membres de la famille"]
[225,"14","Garçon","Possède son propre téléphone"]
[226,"17","Fille","Partage un téléphone avec d'autres membres de la famille"]
[227,"12","Fille","Ne possède pas de téléphone et ne semble pas en vouloir un"]
[228,"18","Fille","Possède son propre téléphone"]
[229,"18","Garçon","Possède son propre téléphone"]
[230,"15","Garçon","Possède son propre téléphone"]
[231,"18","Garçon","Possède son propre téléphone"]
[232,"8","Fille","Possède son propre téléphone"]
[233,"8","Fille","Possède son propre téléphone"]
[234,"9","Garçon","Possède son propre téléphone"]
[235,"18","Garçon","Possède son propre téléphone"]
[236,"14","Garçon","Ne possède pas de téléphone, mais semble en vouloir un"]
[237,"8","Garçon","Ne possède pas de téléphone et ne semble pas en vouloir un"]
[238,"15","Garçon","Possède son propre téléphone"]
[239,"12","Fille","Possède son propre téléphone"]
[240,"18","Garçon","Possède son propre téléphone"]
[241,"8","Fille","Possède son propre téléphone"]
[242,"10","Garçon","Ne possède pas de téléphone et ne semble pas en vouloir un"]
[243,"15","Garçon","Possède son propre téléphone"]
[244,"10","Garçon","Possède son propre téléphone"]
[245,"15","Fille","Possède son propre téléphone"]
[246,"9","Fille","Possède son propre téléphone"]
[247,"11","Garçon","Possède son propre téléphone"]
[248,"17","Garçon","Possède son propre téléphone"]
[249,"13","Garçon","Partage un téléphone avec d'autres membres de la famille"]
[250,"18","Garçon","Possède son propre téléphone"]
[251,"18","Fille","Possède son propre téléphone"]
[252,"9","Fille","Possède son propre téléphone"]
[253,"17","Garçon","Possède son propre téléphone"]
[254,"14","Fille","Possède son propre téléphone"]
[255,"10","Garçon","Ne possède pas de téléphone, mais semble en vouloir un"]
[256,"11","Fille","Possède son propre téléphone"]
[257,"9","Fille","Ne possède pas de téléphone et ne semble pas en vouloir un"]
[258,"12","Garçon","Ne possède pas de téléphone et ne semble pas en vouloir un"]
[259,"18","Fille","Possède son propre téléphone"]
[260,"16","Fille","Possède son propre téléphone"]
[261,"12","Garçon","Partage un téléphone avec d'autres membres de la famille"]
[262,"10","Fille","Ne possède pas de téléphone et ne semble pas en vouloir un"]
[263,"17","Garçon","Possède son propre téléphone"]
[264,"16","Fille","Possède son propre téléphone"]
[265,"18","Garçon","Possède son propre téléphone"]
[266,"17","Garçon","Ne possède pas de téléphone, mais semble en vouloir un"]
[267,"14","Garçon","Possède son propre téléphone"]
[268,"14","Fille","Partage un téléphone avec d'autres membres de la famille"]
[269,"13","Garçon","Possède son propre téléphone"]
[270,"11","Garçon","Possède son propre téléphone"]
[271,"17","Garçon","Possède son propre téléphone"]
[272,"15","Garçon","Partage un téléphone avec d'autres membres de la famille"]
[273,"12","Garçon","Ne possède pas de téléphone, mais semble en vouloir un"]
[274,"17","Fille","Possède son propre téléphone"]
[275,"10","Fille","Ne possède pas de téléphone, mais semble en vouloir un"]
[276,"16","Garçon","Partage un téléphone avec d'autres membres de la famille"]
[277,"16","Garçon","Possède son propre téléphone"]
[278,"16","Garçon","Partage un téléphone avec d'autres membres de la famille"]
[279,"9","Fille","Ne possède pas de téléphone et ne semble pas en vouloir un"]
[280,"14","Garçon","Possède son propre téléphone"]
[281,"15","Garçon","Partage un téléphone avec d'autres membres de la famille"]
[282,"18","Fille","Possède son propre téléphone"]
[283,"9","Fille","Ne possède pas de téléphone, mais semble en vouloir un"]
[284,"14","Garçon","Partage un téléphone avec d'autres membres de la famille"]
[285,"12","Garçon","Possède son propre téléphone"]
[286,"11","Garçon","Possède son propre téléphone"]
[287,"8","Fille","Ne possède pas de téléphone, mais semble en vouloir un"]
[288,"10","Garçon","Ne possède pas de téléphone et ne semble pas en vouloir un"]
[289,"15","Fille","Possède son propre téléphone"]
[290,"16","Fille","Partage un téléphone avec d'autres membres de la famille"]
[291,"18","Garçon","Partage un téléphone avec d'autres membres de la famille"]
[292,"14","Garçon","Ne possède pas de téléphone, mais semble en vouloir un"]
[293,"12","Fille","Ne possède pas de téléphone, mais semble en vouloir un"]
[294,"10","Garçon","Ne possède pas de téléphone, mais semble en vouloir un"]
[295,"8","Garçon","Ne possède pas de téléphone, mais semble en vouloir un"]
[296,"18","Fille","Possède son propre téléphone"]
[297,"11","Garçon","Possède son propre téléphone"]
[298,"14","Fille","Possède son propre téléphone"]
[299,"12","Garçon","Possède son propre téléphone"]
[300,"9","Fille","Partage un téléphone avec d'autres membres de la famille"]
[301,"15","Fille","Partage un téléphone avec d'autres membres de la famille"]
[302,"14","Garçon","Possède son propre téléphone"]
[303,"9","Garçon","Ne possède pas de téléphone, mais semble en vouloir un"]
[304,"14",0,"Possède son propre téléphone"]
[305,"18","Garçon","Possède son propre téléphone"]
[306,"17","Garçon","Possède son propre téléphone"]
[307,"17","Fille","Possède son propre téléphone"]
[308,"9","Fille","Ne possède pas de téléphone, mais semble en vouloir un"]
[309,"17","Fille","Possède son propre téléphone"]
[310,"8","Garçon","Ne possède pas de téléphone, mais semble en vouloir un"]
[311,"18","Fille","Possède son propre téléphone"]
[312,"17","Fille","Possède son propre téléphone"]
[313,"11","Garçon","Possède son propre téléphone"]
[314,"12","Garçon","Possède son propre téléphone"]
[315,"18","Fille","Possède son propre téléphone"]
[316,"14","Garçon","Possède son propre téléphone"]
[317,"16","Fille","Possède son propre téléphone"]
[318,"17","Fille","Ne possède pas de téléphone et ne semble pas en vouloir un"]
[319,"16","Garçon","Possède son propre téléphone"]
[320,"18","Garçon","Possède son propre téléphone"]
[321,"17","Fille","Possède son propre téléphone"]
[322,"17","Garçon","Possède son propre téléphone"]
[323,"16","Garçon","Possède son propre téléphone"]
[324,"18","Garçon","Possède son propre téléphone"]
[325,"15","Fille","Possède son propre téléphone"]
[326,"17","Garçon","Ne possède pas de téléphone et ne semble pas en vouloir un"]
[327,"9","Garçon","Ne possède pas de téléphone, mais semble en vouloir un"]
[328,"18","Fille","Possède son propre téléphone"]
[329,"16","Garçon","Possède son propre téléphone"]
[330,"16","Garçon","Ne possède pas de téléphone, mais semble en vouloir un"]
[331,"13","Garçon","Possède son propre téléphone"]
[332,"17","Garçon","Possède son propre téléphone"]
[333,"18","Fille","Possède son propre téléphone"]
[334,"16","Garçon","Possède son propre téléphone"]
[335,"15","Fille","Partage un téléphone avec d'autres membres de la famille"]
[336,"15","Garçon","Possède son propre téléphone"]
[337,"11","Fille","Partage un téléphone avec d'autres membres de la famille"]
[338,"13","Fille","Possède son propre téléphone"]
[339,"16","Fille","Possède son propre téléphone"]
[340,"18","Garçon","Possède son propre téléphone"]
[341,"15","Garçon","Partage un téléphone avec d'autres membres de la famille"]
[342,"15","Fille","Possède son propre téléphone"]
[343,"17","Fille","Possède son propre téléphone"]
[344,"12","Garçon","Ne possède pas de téléphone, mais semble en vouloir un"]
[345,"13","Fille","Ne possède pas de téléphone, mais semble en vouloir un"]
[346,"15","Fille","Possède son propre téléphone"]
[347,"16","Garçon","Possède son propre téléphone"]
[348,"17","Fille","Possède son propre téléphone"]
[349,"12","Garçon","Ne possède pas de téléphone, mais semble en vouloir un"]
[350,"13","Garçon","Possède son propre téléphone"]
[351,"16","Fille","Possède son propre téléphone"]
[352,"15","Garçon","Possède son propre téléphone"]
[353,"18","Garçon","Possède son propre téléphone"]
[354,"15","Fille","Possède son propre téléphone"]
[355,"18","Fille","Possède son propre téléphone"]
[356,"17","Fille","Possède son propre téléphone"]
[357,"16","Fille","Possède son propre téléphone"]
[358,"9","Garçon","Ne possède pas de téléphone et ne semble pas en vouloir un"]
[359,"11","Garçon","Possède son propre téléphone"]
[360,"16","Fille","Possède son propre téléphone"]
[361,"10","Garçon","Ne possède pas de téléphone, mais semble en vouloir un"]
[362,"10","Fille","Ne possède pas de téléphone, mais semble en vouloir un"]
[363,"10","Fille","Ne possède pas de téléphone et ne semble pas en vouloir un"]
[364,"14","Fille","Ne possède pas de téléphone, mais semble en vouloir un"]
[365,"10","Garçon","Ne possède pas de téléphone, mais semble en vouloir un"]
[366,"8","Garçon","Ne possède pas de téléphone et ne semble pas en vouloir un"]
[367,"17","Garçon","Possède son propre téléphone"]
[368,"11","Garçon","Possède son propre téléphone"]
[369,"15","Garçon","Possède son propre téléphone"]
[370,"17","Garçon","Possède son propre téléphone"]
[371,"16","Garçon","Possède son propre téléphone"]
[372,"17","Fille","Possède son propre téléphone"]
[373,"18","Garçon","Possède son propre téléphone"]
[374,"16","Garçon","Possède son propre téléphone"]
[375,"8","Garçon","Ne possède pas de téléphone et ne semble pas en vouloir un"]
[376,"10","Fille","Possède son propre téléphone"]
[377,"16","Garçon","Partage un téléphone avec d'autres membres de la famille"]
[378,"13","Fille","Ne possède pas de téléphone, mais semble en vouloir un"]
[379,"8","Garçon","Possède son propre téléphone"]
[380,"16","Fille","Possède son propre téléphone"]
[381,"13","Garçon","Possède son propre téléphone"]
[382,"16","Garçon","Possède son propre téléphone"]
[383,"15","Garçon","Possède son propre téléphone"]
[384,"8","Fille","Ne possède pas de téléphone et ne semble pas en vouloir un"]
[385,"15","Garçon","Possède son propre téléphone"]
[386,"9","Garçon","Ne possède pas de téléphone et ne semble pas en vouloir un"]
[387,"16","Garçon","Possède son propre téléphone"]
[388,"10","Fille","Possède son propre téléphone"]
[389,"17","Garçon","Possède son propre téléphone"]
[390,"16","Garçon","Possède son propre téléphone"]
[391,"17","Garçon","Possède son propre téléphone"]
[392,"16","Garçon","Ne possède pas de téléphone et ne semble pas en vouloir un"]
[393,"14","Garçon","Possède son propre téléphone"]
[394,"9","Fille","Partage un téléphone avec d'autres membres de la famille"]
[395,"16","Fille","Possède son propre téléphone"]
[396,"13","Fille","Possède son propre téléphone"]
[397,"17","Garçon","Possède son propre téléphone"]
[398,"14","Garçon","Possède son propre téléphone"]
[399,"16","Garçon","Possède son propre téléphone"]
[400,"14","Fille","Possède son propre téléphone"]
[401,"18","Garçon","Possède son propre téléphone"]
[402,"17","Garçon","Possède son propre téléphone"]
[403,"16","Garçon","Ne possède pas de téléphone et ne semble pas en vouloir un"]
[404,"18","Fille","Possède son propre téléphone"]
[405,"13","Fille","Ne possède pas de téléphone, mais semble en vouloir un"]
[406,"18","Garçon","Possède son propre téléphone"]
[407,"9","Fille","Possède son propre téléphone"]
[408,"16","Fille","Possède son propre téléphone"]
[409,"10","Garçon","Partage un téléphone avec d'autres membres de la famille"]
[410,"15","Garçon","Possède son propre téléphone"]
[411,"13","Garçon","Possède son propre téléphone"]
[412,"18","Garçon","Possède son propre téléphone"]
[413,"17","Fille","Possède son propre téléphone"]
[414,"17","Garçon","Possède son propre téléphone"]
[415,"16","Garçon","Ne possède pas de téléphone, mais semble en vouloir un"]
[416,"18","Fille","Possède son propre téléphone"]
[417,"14","Fille","Possède son propre téléphone"]
[418,"11","Fille","Ne possède pas de téléphone et ne semble pas en vouloir un"]
[419,"14","Garçon","Partage un téléphone avec d'autres membres de la famille"]
[420,"16","Garçon","Partage un téléphone avec d'autres membres de la famille"]
[421,"14","Fille","Possède son propre téléphone"]
[422,"17","Fille","Possède son propre téléphone"]
[423,"15","Garçon","Partage un téléphone avec d'autres membres de la famille"]
[424,"12","Fille","Possède son propre téléphone"]
[425,"13","Garçon","Possède son propre téléphone"]
[426,"13","Fille","Partage un téléphone avec d'autres membres de la famille"]
[427,"17","Fille","Possède son propre téléphone"]
[428,"12","Garçon",0]
[429,"17","Garçon","Ne possède pas de téléphone et ne semble pas en vouloir un"]
[430,"18","Garçon","Possède son propre téléphone"]
[431,"16","Garçon","Possède son propre téléphone"]
[432,"10","Fille","Ne possède pas de téléphone, mais semble en vouloir un"]
[433,"8","Fille","Possède son propre téléphone"]
[434,"18","Fille","Possède son propre téléphone"]
[435,"10","Fille","Possède son propre téléphone"]
[436,"15","Garçon","Possède son propre téléphone"]
[437,"15","Garçon","Ne possède pas de téléphone et ne semble pas en vouloir un"]
[438,"18","Garçon","Possède son propre téléphone"]
[439,"15","Garçon","Possède son propre téléphone"]
[440,"13","Fille",0]
[441,"8","Fille","Ne possède pas de téléphone et ne semble pas en vouloir un"]
[442,"18","Fille","Ne possède pas de téléphone et ne semble pas en vouloir un"]
[443,"13","Garçon","Possède son propre téléphone"]
[444,"9","Fille","Ne possède pas de téléphone, mais semble en vouloir un"]
[445,"9","Fille","Possède son propre téléphone"]
[446,"12","Garçon","Possède son propre téléphone"]
[447,"11","Garçon","Ne possède pas de téléphone, mais semble en vouloir un"]
[448,"13","Garçon","Ne possède pas de téléphone et ne semble pas en vouloir un"]
[449,"11","Fille","Ne possède pas de téléphone et ne semble pas en vouloir un"]
[450,"15","Garçon","Possède son propre téléphone"]
[451,"14","Garçon","Ne possède pas de téléphone, mais semble en vouloir un"]
[452,"12","Fille","Ne possède pas de téléphone, mais semble en vouloir un"]
[453,"10","Garçon","Ne possède pas de téléphone, mais semble en vouloir un"]
[454,"13","Garçon","Ne possède pas de téléphone, mais semble en vouloir un"]
[455,"9","Garçon","Ne possède pas de téléphone, mais semble en vouloir un"]
[456,"15","Fille","Ne possède pas de téléphone, mais semble en vouloir un"]
[457,"9","Garçon","Ne possède pas de téléphone et ne semble pas en vouloir un"]
[458,"10","Fille","Ne possède pas de téléphone et ne semble pas en vouloir un"]
[459,"13","Fille","Ne possède pas de téléphone et ne semble pas en vouloir un"]
[460,"15","Garçon","Possède son propre téléphone"]
[461,"13","Fille","Ne possède pas de téléphone et ne semble pas en vouloir un"]
[462,"17","Fille","Possède son propre téléphone"]
[463,"9","Fille","Ne possède pas de téléphone et ne semble pas en vouloir un"]
[464,"12","Fille","Ne possède pas de téléphone et ne semble pas en vouloir un"]
[465,"14","Fille","Possède son propre téléphone"]
[466,"16","Fille","Partage un téléphone avec d'autres membres de la famille"]
[467,"8","Garçon","Ne possède pas de téléphone et ne semble pas en vouloir un"]
[468,"12","Garçon","Possède son propre téléphone"]
[469,"15","Fille","Ne possède pas de téléphone et ne semble pas en vouloir un"]
[470,"15","Fille","Partage un téléphone avec d'autres membres de la famille"]
[471,"10","Garçon","Ne possède pas de téléphone et ne semble pas en vouloir un"]
[472,"17","Fille","Possède son propre téléphone"]
[473,"10","Fille","Possède son propre téléphone"]
[474,"9","Garçon","Possède son propre téléphone"]
[475,"13","Fille","Partage un téléphone avec d'autres membres de la famille"]
[476,"14","Fille","Ne possède pas de téléphone et ne semble pas en vouloir un"]
[477,"13","Fille","Possède son propre téléphone"]
[478,"10","Fille","Ne possède pas de téléphone et ne semble pas en vouloir un"]
[479,"10","Garçon","Ne possède pas de téléphone et ne semble pas en vouloir un"]
[480,"12","Garçon","Ne possède pas de téléphone, mais semble en vouloir un"]
[481,"11","Garçon","Ne possède pas de téléphone, mais semble en vouloir un"]
[482,"9","Garçon","Ne possède pas de téléphone et ne semble pas en vouloir un"]
[483,"9","Garçon","Possède son propre téléphone"]
[484,"18","Fille","Possède son propre téléphone"]
[485,"15","Fille","Ne possède pas de téléphone et ne semble pas en vouloir un"]
[486,"12","Fille","Ne possède pas de téléphone et ne semble pas en vouloir un"]
[487,"18","Fille","Ne possède pas de téléphone, mais semble en vouloir un"]
[488,"11","Fille","Ne possède pas de téléphone, mais semble en vouloir un"]
[489,"9","Fille","Ne possède pas de téléphone et ne semble pas en vouloir un"]
[490,"10","Garçon","Ne possède pas de téléphone, mais semble en vouloir un"]
[491,"15","Garçon","Ne possède pas de téléphone et ne semble pas en vouloir un"]
[492,"18","Fille","Possède son propre téléphone"]
[493,"16","Garçon","Possède son propre téléphone"]
[494,"10","Fille","Possède son propre téléphone"]
[495,"12","Garçon","Ne possède pas de téléphone, mais semble en vouloir un"]
[496,"10","Garçon","Possède son propre téléphone"]
[497,"11","Fille","Partage un téléphone avec d'autres membres de la famille"]
[498,"18","Garçon","Possède son propre téléphone"]
[499,"13","Fille","Possède son propre téléphone"]
[500,"9","Garçon","Partage un téléphone avec d'autres membres de la famille"]
[501,"15","Fille","Partage un téléphone avec d'autres membres de la famille"]
[502,"18","Fille","Possède son propre téléphone"]
[503,"14","Garçon","Possède son propre téléphone"]
[504,"16","Garçon","Possède son propre téléphone"]
[505,"17","Garçon","Possède son propre téléphone"]
[506,"14","Fille","Possède son propre téléphone"]
[507,"16","Garçon","Possède son propre téléphone"]
[508,"15","Garçon","Partage un téléphone avec d'autres membres de la famille"]
[509,"17","Garçon","Partage un téléphone avec d'autres membres de la famille"]
[510,"10","Garçon","Ne possède pas de téléphone et ne semble pas en vouloir un"]
[511,"15",0,"Possède son propre téléphone"]
[512,"12","Fille","Ne possède pas de téléphone et ne semble pas en vouloir un"]
[513,"9","Fille","Ne possède pas de téléphone et ne semble pas en vouloir un"]
[514,"17","Garçon","Possède son propre téléphone"]
[515,"14","Garçon","Possède son propre téléphone"]
[516,"11","Fille","Ne possède pas de téléphone et ne semble pas en vouloir un"]
[517,"17","Garçon","Possède son propre téléphone"]
[518,"16","Garçon","Possède son propre téléphone"]
[519,"18","Garçon","Possède son propre téléphone"]
[520,"12","Garçon","Ne possède pas de téléphone et ne semble pas en vouloir un"]
[521,"17","Garçon","Possède son propre téléphone"]
[522,"14","Garçon","Possède son propre téléphone"]
[523,"16","Garçon","Possède son propre téléphone"]
[524,"13","Garçon","Possède son propre téléphone"]
[525,"17","Fille","Possède son propre téléphone"]
[526,"16","Garçon","Possède son propre téléphone"]
[527,"13","Garçon","Possède son propre téléphone"]
[528,"14","Fille","Ne possède pas de téléphone, mais semble en vouloir un"]
[529,"14","Fille","Possède son propre téléphone"]
[530,"11","Garçon","Partage un téléphone avec d'autres membres de la famille"]
[531,"16","Garçon","Possède son propre téléphone"]
[532,"10","Garçon","Ne possède pas de téléphone et ne semble pas en vouloir un"]
[533,"14","Garçon","Possède son propre téléphone"]
[534,"17","Garçon","Possède son propre téléphone"]
[535,"14","Fille","Ne possède pas de téléphone, mais semble en vouloir un"]
[536,"13","Fille","Ne possède pas de téléphone, mais semble en vouloir un"]
[537,"16","Garçon","Possède son propre téléphone"]
[538,"12","Garçon","Possède son propre téléphone"]
[539,"16","Fille","Possède son propre téléphone"]
[540,"15","Garçon","Possède son propre téléphone"]
[541,"14","Garçon","Possède son propre téléphone"]
[542,"16","Fille","Possède son propre téléphone"]
[543,"12","Fille","Ne possède pas de téléphone, mais semble en vouloir un"]
[544,"8","Fille","Ne possède pas de téléphone, mais semble en vouloir un"]
[545,"18","Garçon","Ne possède pas de téléphone et ne semble pas en vouloir un"]
[546,"18","Fille","Possède son propre téléphone"]
[547,"10","Garçon","Ne possède pas de téléphone et ne semble pas en vouloir un"]
[548,"13","Garçon","Possède son propre téléphone"]
[549,"17","Fille","Possède son propre téléphone"]
[550,"17","Garçon","Possède son propre téléphone"]
[551,"18","Garçon","Possède son propre téléphone"]
[552,"18","Garçon","Possède son propre téléphone"]
[553,"15","Garçon","Ne possède pas de téléphone, mais semble en vouloir un"]
[554,"18","Garçon","Possède son propre téléphone"]
[555,"12","Garçon","Partage un téléphone avec d'autres membres de la famille"]
[556,"15","Fille","Partage un téléphone avec d'autres membres de la famille"]
[557,"10","Fille","Possède son propre téléphone"]
[558,"9","Fille","Possède son propre téléphone"]
[559,"9","Fille","Possède son propre téléphone"]
[560,"16","Garçon","Possède son propre téléphone"]
[561,"8","Fille","Ne possède pas de téléphone, mais semble en vouloir un"]
[562,"18","Fille","Possède son propre téléphone"]
[563,"15","Garçon","Ne possède pas de téléphone, mais semble en vouloir un"]
[564,"12","Garçon","Partage un téléphone avec d'autres membres de la famille"]
[565,"18","Garçon","Possède son propre téléphone"]
[566,"15","Garçon","Possède son propre téléphone"]
[567,"14","Fille","Possède son propre téléphone"]
[568,"16","Garçon","Partage un téléphone avec d'autres membres de la famille"]
[569,"18","Garçon","Possède son propre téléphone"]
[570,"15","Fille","Possède son propre téléphone"]
[571,"18","Fille","Ne possède pas de téléphone et ne semble pas en vouloir un"]
[572,"13","Fille","Possède son propre téléphone"]
[573,"13","Garçon","Possède son propre téléphone"]
[574,"15","Garçon","Possède son propre téléphone"]
[575,"18","Fille","Possède son propre téléphone"]
[576,"18","Garçon","Possède son propre téléphone"]
[577,"15","Fille","Partage un téléphone avec d'autres membres de la famille"]
[578,"15","Garçon","Possède son propre téléphone"]
[579,"14","Garçon","Possède son propre téléphone"]
[580,"16","Fille","Possède son propre téléphone"]
[581,"17","Garçon","Possède son propre téléphone"]
[582,"16","Fille","Possède son propre téléphone"]
[583,"10",0,"Partage un téléphone avec d'autres membres de la famille"]
[584,"10",0,"Partage un téléphone avec d'autres membres de la famille"]
[585,"13","Fille","Possède son propre téléphone"]
[586,"10",0,"Partage un téléphone avec d'autres membres de la famille"]
[587,"14",0,"Possède son propre téléphone"]
[588,"16","Garçon","Possède son propre téléphone"]
[589,"17","Garçon","Possède son propre téléphone"]
[590,"18","Fille","Possède son propre téléphone"]
[591,"16","Garçon","Partage un téléphone avec d'autres membres de la famille"]
[592,"10","Garçon","Ne possède pas de téléphone, mais semble en vouloir un"]
[593,"17","Garçon","Possède son propre téléphone"]
[594,"18","Fille","Possède son propre téléphone"]
[595,"16","Fille","Possède son propre téléphone"]
[596,"16","Fille","Possède son propre téléphone"]
[597,"15","Fille","Partage un téléphone avec d'autres membres de la famille"]
[598,"16","Garçon","Possède son propre téléphone"]
[599,"11","Garçon","Possède son propre téléphone"]
[600,"16","Fille","Possède son propre téléphone"]

{"sheet":"Matrice des frequences","index":1,"n_rows":19,"n_cols":15,"rows_kept":19}
[null,null,"q1_a","q1_a","q1_a","q1_a","q1_a","q1_a","q1_a","q1_b","q1_b","q2","q2","q2","q2"]
[null,null,8,9,10,11,12,13,14,"Garçon","Fille","Possède son propre téléphone","Partage un téléphone avec d'autres membres de la famille","Ne possède pas de téléphone, mais semble en vouloir un","Ne possède pas de téléphone et ne semble pas en vouloir un"]
["q1_a",8,{"$f":"COUNTIFS(donnees!$B:$B,C$2,donnees!$B:$B,$B3)","v":28},{"$f":"COUNTIFS(donnees!$B:$B,D$2,donnees!$B:$B,$B3)","v":0},{"$f":"COUNTIFS(donnees!$B:$B,E$2,donnees!$B:$B,$B3)","v":0},{"$f":"COUNTIFS(donnees!$B:$B,F$2,donnees!$B:$B,$B3)","v":0},{"$f":"COUNTIFS(donnees!$B:$B,G$2,donnees!$B:$B,$B3)","v":0},{"$f":"COUNTIFS(donnees!$B:$B,H$2,donnees!$B:$B,$B3)","v":0},{"$f":"COUNTIFS(donnees!$B:$B,I$2,donnees!$B:$B,$B3)","v":0},{"$f":"COUNTIFS(donnees!$C:$C,J$2,donnees!$B:$B,$B3)","v":14},{"$f":"COUNTIFS(donnees!$C:$C,K$2,donnees!$B:$B,$B3)","v":14},{"$f":"COUNTIFS(donnees!$D:$D,L$2,donnees!$B:$B,$B3)","v":13},{"$f":"COUNTIFS(donnees!$D:$D,M$2,donnees!$B:$B,$B3)","v":0},{"$f":"COUNTIFS(donnees!$D:$D,N$2,donnees!$B:$B,$B3)","v":7},{"$f":"COUNTIFS(donnees!$D:$D,O$2,donnees!$B:$B,$B3)","v":7}]
["q1_a",9,{"$f":"COUNTIFS(donnees!$B:$B,C$2,donnees!$B:$B,$B4)","v":0},{"$f":"COUNTIFS(donnees!$B:$B,D$2,donnees!$B:$B,$B4)","v":34},{"$f":"COUNTIFS(donnees!$B:$B,E$2,donnees!$B:$B,$B4)","v":0},{"$f":"COUNTIFS(donnees!$B:$B,F$2,donnees!$B:$B,$B4)","v":0},{"$f":"COUNTIFS(donnees!$B:$B,G$2,donnees!$B:$B,$B4)","v":0},{"$f":"COUNTIFS(donnees!$B:$B,H$2,donnees!$B:$B,$B4)","v":0},{"$f":"COUNTIFS(donnees!$B:$B,I$2,donnees!$B:$B,$B4)","v":0},{"$f":"COUNTIFS(donnees!$C:$C,J$2,donnees!$B:$B,$B4)","v":15},{"$f":"COUNTIFS(donnees!$C:$C,K$2,donnees!$B:$B,$B4)","v":19},{"$f":"COUNTIFS(donnees!$D:$D,L$2,donnees!$B:$B,$B4)","v":13},{"$f":"COUNTIFS(donnees!$D:$D,M$2,donnees!$B:$B,$B4)","v":4},{"$f":"COUNTIFS(donnees!$D:$D,N$2,donnees!$B:$B,$B4)","v":7},{"$f":"COUNTIFS(donnees!$D:$D,O$2,donnees!$B:$B,$B4)","v":10}]
["q1_a",10,{"$f":"COUNTIFS(donnees!$B:$B,C$2,donnees!$B:$B,$B5)","v":0},{"$f":"COUNTIFS(donnees!$B:$B,D$2,donnees!$B:$B,$B5)","v":0},{"$f":"COUNTIFS(donnees!$B:$B,E$2,donnees!$B:$B,$B5)","v":46},{"$f":"COUNTIFS(donnees!$B:$B,F$2,donnees!$B:$B,$B5)","v":0},{"$f":"COUNTIFS(donnees!$B:$B,G$2,donnees!$B:$B,$B5)","v":0},{"$f":"COUNTIFS(donnees!$B:$B,H$2,donnees!$B:$B,$B5)","v":0},{"$f":"COUNTIFS(donnees!$B:$B,I$2,donnees!$B:$B,$B5)","v":0},{"$f":"COUNTIFS(donnees!$C:$C,J$2,donnees!$B:$B,$B5)","v":24},{"$f":"COUNTIFS(donnees!$C:$C,K$2,donnees!$B:$B,$B5)","v":19},{"$f":"COUNTIFS(donnees!$D:$D,L$2,donnees!$B:$B,$B5)","v":16},{"$f":"COUNTIFS(donnees!$D:$D,M$2,donnees!$B:$B,$B5)","v":5},{"$f":"COUNTIFS(donnees!$D:$D,N$2,donnees!$B:$B,$B5)","v":13},{"$f":"COUNTIFS(donnees!$D:$D,O$2,donnees!$B:$B,$B5)","v":12}]
["q1_a",11,{"$f":"COUNTIFS(donnees!$B:$B,C$2,donnees!$B:$B,$B6)","v":0},{"$f":"COUNTIFS(donnees!$B:$B,D$2,donnees!$B:$B,$B6)","v":0},{"$f":"COUNTIFS(donnees!$B:$B,E$2,donnees!$B:$B,$B6)","v":0},{"$f":"COUNTIFS(donnees!$B:$B,F$2,donnees!$B:$B,$B6)","v":28},{"$f":"COUNTIFS(donnees!$B:$B,G$2,donnees!$B:$B,$B6)","v":0},{"$f":"COUNTIFS(donnees!$B:$B,H$2,donnees!$B:$B,$B6)","v":0},{"$f":"COUNTIFS(donnees!$B:$B,I$2,donnees!$B:$B,$B6)","v":0},{"$f":"COUNTIFS(donnees!$C:$C,J$2,donnees!$B:$B,$B6)","v":14},{"$f":"COUNTIFS(donnees!$C:$C,K$2,donnees!$B:$B,$B6)","v":14},{"$f":"COUNTIFS(donnees!$D:$D,L$2,donnees!$B:$B,$B6)","v":12},{"$f":"COUNTIFS(donnees!$D:$D,M$2,donnees!$B:$B,$B6)","v":7},{"$f":"COUNTIFS(donnees!$D:$D,N$2,donnees!$B:$B,$B6)","v":3},{"$f":"COUNTIFS(donnees!$D:$D,O$2,donnees!$B:$B,$B6)","v":6}]
["q1_a",12,{"$f":"COUNTIFS(donnees!$B:$B,C$2,donnees!$B:$B,$B7)","v":0},{"$f":"COUNTIFS(donnees!$B:$B,D$2,donnees!$B:$B,$B7)","v":0},{"$f":"COUNTIFS(donnees!$B:$B,E$2,donnees!$B:$B,$B7)","v":0},{"$f":"COUNTIFS(donnees!$B:$B,F$2,donnees!$B:$B,$B7)","v":0},{"$f":"COUNTIFS(donnees!$B:$B,G$2,donnees!$B:$B,$B7)","v":38},{"$f":"COUNTIFS(donnees!$B:$B,H$2,donnees!$B:$B,$B7)","v":0},{"$f":"COUNTIFS(donnees!$B:$B,I$2,donnees!$B:$B,$B7)","v":0},{"$f":"COUNTIFS(donnees!$C:$C,J$2,donnees!$B:$B,$B7)","v":21},{"$f":"COUNTIFS(donnees!$C:$C,K$2,donnees!$B:$B,$B7)","v":17},{"$f":"COUNTIFS(donnees!$D:$D,L$2,donnees!$B:$B,$B7)","v":17},{"$f":"COUNTIFS(donnees!$D:$D,M$2,donnees!$B:$B,$B7)","v":3},{"$f":"COUNTIFS(donnees!$D:$D,N$2,donnees!$B:$B,$B7)","v":9},{"$f":"COUNTIFS(donnees!$D:$D,O$2,donnees!$B:$B,$B7)","v":8}]
["q1_a",13,{"$f":"COUNTIFS(donnees!$B:$B,C$2,donnees!$B:$B,$B8)","v":0},{"$f":"COUNTIFS(donnees!$B:$B,D$2,donnees!$B:$B,$B8)","v":0},{"$f":"COUNTIFS(donnees!$B:$B,E$2,donnees!$B:$B,$B8)","v":0},{"$f":"COUNTIFS(donnees!$B:$B,F$2,donnees!$B:$B,$B8)","v":0},{"$f":"COUNTIFS(donnees!$B:$B,G$2,donnees!$B:$B,$B8)","v":0},{"$f":"COUNTIFS(donnees!$B:$B,H$2,donnees!$B:$B,$B8)","v":47},{"$f":"COUNTIFS(donnees!$B:$B,I$2,donnees!$B:$B,$B8)","v":0},{"$f":"COUNTIFS(donnees!$C:$C,J$2,donnees!$B:$B,$B8)","v":22},{"$f":"COUNTIFS(donnees!$C:$C,K$2,donnees!$B:$B,$B8)","v":25},{"$f":"COUNTIFS(donnees!$D:$D,L$2,donnees!$B:$B,$B8)","v":31},{"$f":"COUNTIFS(donnees!$D:$D,M$2,donnees!$B:$B,$B8)","v":6},{"$f":"COUNTIFS(donnees!$D:$D,N$2,donnees!$B:$B,$B8)","v":5},{"$f":"COUNTIFS(donnees!$D:$D,O$2,donnees!$B:$B,$B8)","v":4}]
["q1_a",14,{"$f":"COUNTIFS(donnees!$B:$B,C$2,donnees!$B:$B,$B9)","v":0},{"$f":"COUNTIFS(donnees!$B:$B,D$2,donnees!$B:$B,$B9)","v":0},{"$f":"COUNTIFS(donnees!$B:$B,E$2,donnees!$B:$B,$B9)","v":0},{"$f":"COUNTIFS(donnees!$B:$B,F$2,donnees!$B:$B,$B9)","v":0},{"$f":"COUNTIFS(donnees!$B:$B,G$2,donnees!$B:$B,$B9)","v":0},{"$f":"COUNTIFS(donnees!$B:$B,H$2,donnees!$B:$B,$B9)","v":0},{"$f":"COUNTIFS(donnees!$B:$B,I$2,donnees!$B:$B,$B9)","v":58},{"$f":"COUNTIFS(donnees!$C:$C,J$2,donnees!$B:$B,$B9)","v":29},{"$f":"COUNTIFS(donnees!$C:$C,K$2,donnees!$B:$B,$B9)","v":27},{"$f":"COUNTIFS(donnees!$D:$D,L$2,donnees!$B:$B,$B9)","v":41},{"$f":"COUNTIFS(donnees!$D:$D,M$2,donnees!$B:$B,$B9)","v":5},{"$f":"COUNTIFS(donnees!$D:$D,N$2,donnees!$B:$B,$B9)","v":9},{"$f":"COUNTIFS(donnees!$D:$D,O$2,donnees!$B:$B,$B9)","v":2}]
["q1_a",15,{"$f":"COUNTIFS(donnees!$B:$B,C$2,donnees!$B:$B,$B10)","v":0},{"$f":"COUNTIFS(donnees!$B:$B,D$2,donnees!$B:$B,$B10)","v":0},{"$f":"COUNTIFS(donnees!$B:$B,E$2,donnees!$B:$B,$B10)","v":0},{"$f":"COUNTIFS(donnees!$B:$B,F$2,donnees!$B:$B,$B10)","v":0},{"$f":"COUNTIFS(donnees!$B:$B,G$2,donnees!$B:$B,$B10)","v":0},{"$f":"COUNTIFS(donnees!$B:$B,H$2,donnees!$B:$B,$B10)","v":0},{"$f":"COUNTIFS(donnees!$B:$B,I$2,donnees!$B:$B,$B10)","v":0},{"$f":"COUNTIFS(donnees!$C:$C,J$2,donnees!$B:$B,$B10)","v":35},{"$f":"COUNTIFS(donnees!$C:$C,K$2,donnees!$B:$B,$B10)","v":28},{"$f":"COUNTIFS(donnees!$D:$D,L$2,donnees!$B:$B,$B10)","v":44},{"$f":"COUNTIFS(donnees!$D:$D,M$2,donnees!$B:$B,$B10)","v":13},{"$f":"COUNTIFS(donnees!$D:$D,N$2,donnees!$B:$B,$B10)","v":4},{"$f":"COUNTIFS(donnees!$D:$D,O$2,donnees!$B:$B,$B10)","v":4}]
["q1_a",16,{"$f":"COUNTIFS(donnees!$B:$B,C$2,donnees!$B:$B,$B11)","v":0},{"$f":"COUNTIFS(donnees!$B:$B,D$2,donnees!$B:$B,$B11)","v":0},{"$f":"COUNTIFS(donnees!$B:$B,E$2,donnees!$B:$B,$B11)","v":0},{"$f":"COUNTIFS(donnees!$B:$B,F$2,donnees!$B:$B,$B11)","v":0},{"$f":"COUNTIFS(donnees!$B:$B,G$2,donnees!$B:$B,$B11)","v":0},{"$f":"COUNTIFS(donnees!$B:$B,H$2,donnees!$B:$B,$B11)","v":0},{"$f":"COUNTIFS(donnees!$B:$B,I$2,donnees!$B:$B,$B11)","v":0},{"$f":"COUNTIFS(donnees!$C:$C,J$2,donnees!$B:$B,$B11)","v":55},{"$f":"COUNTIFS(donnees!$C:$C,K$2,donnees!$B:$B,$B11)","v":35},{"$f":"COUNTIFS(donnees!$D:$D,L$2,donnees!$B:$B,$B11)","v":75},{"$f":"COUNTIFS(donnees!$D:$D,M$2,donnees!$B:$B,$B11)","v":11},{"$f":"COUNTIFS(donnees!$D:$D,N$2,donnees!$B:$B,$B11)","v":3},{"$f":"COUNTIFS(donnees!$D:$D,O$2,donnees!$B:$B,$B11)","v":2}]
["q1_a",17,{"$f":"COUNTIFS(donnees!$B:$B,C$2,donnees!$B:$B,$B12)","v":0},{"$f":"COUNTIFS(donnees!$B:$B,D$2,donnees!$B:$B,$B12)","v":0},{"$f":"COUNTIFS(donnees!$B:$B,E$2,donnees!$B:$B,$B12)","v":0},{"$f":"COUNTIFS(donnees!$B:$B,F$2,donnees!$B:$B,$B12)","v":0},{"$f":"COUNTIFS(donnees!$B:$B,G$2,donnees!$B:$B,$B12)","v":0},{"$f":"COUNTIFS(donnees!$B:$B,H$2,donnees!$B:$B,$B12)","v":0},{"$f":"COUNTIFS(donnees!$B:$B,I$2,donnees!$B:$B,$B12)","v":0},{"$f":"COUNTIFS(donnees!$C:$C,J$2,donnees!$B:$B,$B12)","v":40},{"$f":"COUNTIFS(donnees!$C:$C,K$2,donnees!$B:$B,$B12)","v":31},{"$f":"COUNTIFS(donnees!$D:$D,L$2,donnees!$B:$B,$B12)","v":61},{"$f":"COUNTIFS(donnees!$D:$D,M$2,donnees!$B:$B,$B12)","v":3},{"$f":"COUNTIFS(donnees!$D:$D,N$2,donnees!$B:$B,$B12)","v":2},{"$f":"COUNTIFS(donnees!$D:$D,O$2,donnees!$B:$B,$B12)","v":5}]
["q1_a",18,{"$f":"COUNTIFS(donnees!$B:$B,C$2,donnees!$B:$B,$B13)","v":0},{"$f":"COUNTIFS(donnees!$B:$B,D$2,donnees!$B:$B,$B13)","v":0},{"$f":"COUNTIFS(donnees!$B:$B,E$2,donnees!$B:$B,$B13)","v":0},{"$f":"COUNTIFS(donnees!$B:$B,F$2,donnees!$B:$B,$B13)","v":0},{"$f":"COUNTIFS(donnees!$B:$B,G$2,donnees!$B:$B,$B13)","v":0},{"$f":"COUNTIFS(donnees!$B:$B,H$2,donnees!$B:$B,$B13)","v":0},{"$f":"COUNTIFS(donnees!$B:$B,I$2,donnees!$B:$B,$B13)","v":0},{"$f":"COUNTIFS(donnees!$C:$C,J$2,donnees!$B:$B,$B13)","v":52},{"$f":"COUNTIFS(donnees!$C:$C,K$2,donnees!$B:$B,$B13)","v":42},{"$f":"COUNTIFS(donnees!$D:$D,L$2,donnees!$B:$B,$B13)","v":86},{"$f":"COUNTIFS(donnees!$D:$D,M$2,donnees!$B:$B,$B13)","v":3},{"$f":"COUNTIFS(donnees!$D:$D,N$2,donnees!$B:$B,$B13)","v":1},{"$f":"COUNTIFS(donnees!$D:$D,O$2,donnees!$B:$B,$B13)","v":4}]
["q1_b","Garçon",{"$f":"COUNTIFS(donnees!$B:$B,C$2,donnees!$C:$C,$B14)","v":14},{"$f":"COUNTIFS(donnees!$B:$B,D$2,donnees!$C:$C,$B14)","v":15},{"$f":"COUNTIFS(donnees!$B:$B,E$2,donnees!$C:$C,$B14)","v":24},{"$f":"COUNTIFS(donnees!$B:$B,F$2,donnees!$C:$C,$B14)","v":14},{"$f":"COUNTIFS(donnees!$B:$B,G$2,donnees!$C:$C,$B14)","v":21},{"$f":"COUNTIFS(donnees!$B:$B,H$2,donnees!$C:$C,$B14)","v":22},{"$f":"COUNTIFS(donnees!$B:$B,I$2,donnees!$C:$C,$B14)","v":29},{"$f":"COUNTIFS(donnees!$C:$C,J$2,donnees!$C:$C,$B14)","v":321},{"$f":"COUNTIFS(donnees!$C:$C,K$2,donnees!$C:$C,$B14)","v":0},{"$f":"COUNTIFS(donnees!$D:$D,L$2,donnees!$C:$C,$B14)","v":230},{"$f":"COUNTIFS(donnees!$D:$D,M$2,donnees!$C:$C,$B14)","v":26},{"$f":"COUNTIFS(donnees!$D:$D,N$2,donnees!$C:$C,$B14)","v":36},{"$f":"COUNTIFS(donnees!$D:$D,O$2,donnees!$C:$C,$B14)","v":28}]
["q1_b","Fille",{"$f":"COUNTIFS(donnees!$B:$B,C$2,donnees!$C:$C,$B15)","v":14},{"$f":"COUNTIFS(donnees!$B:$B,D$2,donnees!$C:$C,$B15)","v":19},{"$f":"COUNTIFS(donnees!$B:$B,E$2,donnees!$C:$C,$B15)","v":19},{"$f":"COUNTIFS(donnees!$B:$B,F$2,donnees!$C:$C,$B15)","v":14},{"$f":"COUNTIFS(donnees!$B:$B,G$2,donnees!$C:$C,$B15)","v":17},{"$f":"COUNTIFS(donnees!$B:$B,H$2,donnees!$C:$C,$B15)","v":25},{"$f":"COUNTIFS(donnees!$B:$B,I$2,donnees!$C:$C,$B15)","v":27},{"$f":"COUNTIFS(donnees!$C:$C,J$2,donnees!$C:$C,$B15)","v":0},{"$f":"COUNTIFS(donnees!$C:$C,K$2,donnees!$C:$C,$B15)","v":271},{"$f":"COUNTIFS(donnees!$D:$D,L$2,donnees!$C:$C,$B15)","v":174},{"$f":"COUNTIFS(donnees!$D:$D,M$2,donnees!$C:$C,$B15)","v":31},{"$f":"COUNTIFS(donnees!$D:$D,N$2,donnees!$C:$C,$B15)","v":27},{"$f":"COUNTIFS(donnees!$D:$D,O$2,donnees!$C:$C,$B15)","v":36}]
["q2","Possède son propre téléphone",{"$f":"COUNTIFS(donnees!$B:$B,C$2,donnees!$D:$D,$B16)","v":13},{"$f":"COUNTIFS(donnees!$B:$B,D$2,donnees!$D:$D,$B16)","v":13},{"$f":"COUNTIFS(donnees!$B:$B,E$2,donnees!$D:$D,$B16)","v":16},{"$f":"COUNTIFS(donnees!$B:$B,F$2,donnees!$D:$D,$B16)","v":12},{"$f":"COUNTIFS(donnees!$B:$B,G$2,donnees!$D:$D,$B16)","v":17},{"$f":"COUNTIFS(donnees!$B:$B,H$2,donnees!$D:$D,$B16)","v":31},{"$f":"COUNTIFS(donnees!$B:$B,I$2,donnees!$D:$D,$B16)","v":41},{"$f":"COUNTIFS(donnees!$C:$C,J$2,donnees!$D:$D,$B16)","v":230},{"$f":"COUNTIFS(donnees!$C:$C,K$2,donnees!$D:$D,$B16)","v":174},{"$f":"COUNTIFS(donnees!$D:$D,L$2,donnees!$D:$D,$B16)","v":409},{"$f":"COUNTIFS(donnees!$D:$D,M$2,donnees!$D:$D,$B16)","v":0},{"$f":"COUNTIFS(donnees!$D:$D,N$2,donnees!$D:$D,$B16)","v":0},{"$f":"COUNTIFS(donnees!$D:$D,O$2,donnees!$D:$D,$B16)","v":0}]
["q2","Partage un téléphone avec d'autres membres de la famille",{"$f":"COUNTIFS(donnees!$B:$B,C$2,donnees!$D:$D,$B17)","v":0},{"$f":"COUNTIFS(donnees!$B:$B,D$2,donnees!$D:$D,$B17)","v":4},{"$f":"COUNTIFS(donnees!$B:$B,E$2,donnees!$D:$D,$B17)","v":5},{"$f":"COUNTIFS(donnees!$B:$B,F$2,donnees!$D:$D,$B17)","v":7},{"$f":"COUNTIFS(donnees!$B:$B,G$2,donnees!$D:$D,$B17)","v":3},{"$f":"COUNTIFS(donnees!$B:$B,H$2,donnees!$D:$D,$B17)","v":6},{"$f":"COUNTIFS(donnees!$B:$B,I$2,donnees!$D:$D,$B17)","v":5},{"$f":"COUNTIFS(donnees!$C:$C,J$2,donnees!$D:$D,$B17)","v":26},{"$f":"COUNTIFS(donnees!$C:$C,K$2,donnees!$D:$D,$B17)","v":31},{"$f":"COUNTIFS(donnees!$D:$D,L$2,donnees!$D:$D,$B17)","v":0},{"$f":"COUNTIFS(donnees!$D:$D,M$2,donnees!$D:$D,$B17)","v":60},{"$f":"COUNTIFS(donnees!$D:$D,N$2,donnees!$D:$D,$B17)","v":0},{"$f":"COUNTIFS(donnees!$D:$D,O$2,donnees!$D:$D,$B17)","v":0}]
["q2","Ne possède pas de téléphone, mais semble en vouloir un",{"$f":"COUNTIFS(donnees!$B:$B,C$2,donnees!$D:$D,$B18)","v":7},{"$f":"COUNTIFS(donnees!$B:$B,D$2,donnees!$D:$D,$B18)","v":7},{"$f":"COUNTIFS(donnees!$B:$B,E$2,donnees!$D:$D,$B18)","v":13},{"$f":"COUNTIFS(donnees!$B:$B,F$2,donnees!$D:$D,$B18)","v":3},{"$f":"COUNTIFS(donnees!$B:$B,G$2,donnees!$D:$D,$B18)","v":9},{"$f":"COUNTIFS(donnees!$B:$B,H$2,donnees!$D:$D,$B18)","v":5},{"$f":"COUNTIFS(donnees!$B:$B,I$2,donnees!$D:$D,$B18)","v":9},{"$f":"COUNTIFS(donnees!$C:$C,J$2,donnees!$D:$D,$B18)","v":36},{"$f":"COUNTIFS(donnees!$C:$C,K$2,donnees!$D:$D,$B18)","v":27},{"$f":"COUNTIFS(donnees!$D:$D,L$2,donnees!$D:$D,$B18)","v":0},{"$f":"COUNTIFS(donnees!$D:$D,M$2,donnees!$D:$D,$B18)","v":0},{"$f":"COUNTIFS(donnees!$D:$D,N$2,donnees!$D:$D,$B18)","v":63},{"$f":"COUNTIFS(donnees!$D:$D,O$2,donnees!$D:$D,$B18)","v":0}]
["q2","Ne possède pas de téléphone et ne semble pas en vouloir un",{"$f":"COUNTIFS(donnees!$B:$B,C$2,donnees!$D:$D,$B19)","v":7},{"$f":"COUNTIFS(donnees!$B:$B,D$2,donnees!$D:$D,$B19)","v":10},{"$f":"COUNTIFS(donnees!$B:$B,E$2,donnees!$D:$D,$B19)","v":12},{"$f":"COUNTIFS(donnees!$B:$B,F$2,donnees!$D:$D,$B19)","v":6},{"$f":"COUNTIFS(donnees!$B:$B,G$2,donnees!$D:$D,$B19)","v":8},{"$f":"COUNTIFS(donnees!$B:$B,H$2,donnees!$D:$D,$B19)","v":4},{"$f":"COUNTIFS(donnees!$B:$B,I$2,donnees!$D:$D,$B19)","v":2},{"$f":"COUNTIFS(donnees!$C:$C,J$2,donnees!$D:$D,$B19)","v":28},{"$f":"COUNTIFS(donnees!$C:$C,K$2,donnees!$D:$D,$B19)","v":36},{"$f":"COUNTIFS(donnees!$D:$D,L$2,donnees!$D:$D,$B19)","v":0},{"$f":"COUNTIFS(donnees!$D:$D,M$2,donnees!$D:$D,$B19)","v":0},{"$f":"COUNTIFS(donnees!$D:$D,N$2,donnees!$D:$D,$B19)","v":0},{"$f":"COUNTIFS(donnees!$D:$D,O$2,donnees!$D:$D,$B19)","v":64}]